[Event "Titled Tuesday Blitz June 21 Early 2022"]
[White "Borisova, Ekaterina"]
[Black "Rohith Krishna S"]
[WhiteFideId "34124184"]
[BlackFideId "46617051"]
[WhiteElo "2039"]
[BlackElo "2117"]
[Result "0-1"]
[Round "10"]
[TimeControl "180+1"]
[Date "2022.06.21"]
[WhiteClock "0:00:09"]
[BlackClock "0:00:20"]

1. d4 {[%clk 0:02:55]}  Nf6 {[%clk 0:02:57]} 2. c4 {[%clk 0:02:54]}  e5 {[%clk 0:02:58]} 3. dxe5 {[%clk 0:02:51]}  Ng4 {[%clk 0:02:58]} 4. Nf3 {[%clk 0:02:51]}  Bc5 {[%clk 0:02:54]} 5. e3 {[%clk 0:02:46]}  Nc6 {[%clk 0:02:54]} 6. Be2 {[%clk 0:02:45]}  O-O {[%clk 0:02:50]} 7. O-O {[%clk 0:02:44]}  Ngxe5 {[%clk 0:02:49]} 8. Nxe5 {[%clk 0:02:45]}  Nxe5 {[%clk 0:02:49]} 9. Nc3 {[%clk 0:02:45]}  a6 {[%clk 0:02:48]} 10. Na4 {[%clk 0:02:43]}  Ba7 {[%clk 0:02:47]} 11. c5 {[%clk 0:02:43]}  d5 {[%clk 0:02:46]} 12. cxd6 {[%clk 0:02:41]}  cxd6 {[%clk 0:02:46]} 13. b3 {[%clk 0:02:40]}  Bf5 {[%clk 0:02:43]} 14. Ba3 {[%clk 0:02:38]}  Qg5 {[%clk 0:02:23]} 15. Kh1 {[%clk 0:02:26]}  Ng4 {[%clk 0:02:16]} 16. Qxd6 {[%clk 0:02:06]}  Rfd8 {[%clk 0:02:00]} 17. Qg3 {[%clk 0:01:59]}  h5 {[%clk 0:01:53]} 18. h3 {[%clk 0:01:13]}  Rd2 {[%clk 0:01:15]} 19. hxg4 {[%clk 0:01:05]}  hxg4 {[%clk 0:01:06]} 20. Nc3 {[%clk 0:00:46]}  Rc8 {[%clk 0:00:58]} 21. Rac1 {[%clk 0:00:30]}  Rc6 {[%clk 0:00:41]} 22. Kg1 {[%clk 0:00:22]}  Rh6 {[%clk 0:00:38]} 23. f4 {[%clk 0:00:11]}  Qf6 {[%clk 0:00:27]} 24. Rfd1 {[%clk 0:00:10]}  Qd8 {[%clk 0:00:20]} 25. Kf2 {[%clk 0:00:09]}  Re6 {[%clk 0:00:20]} 0-1


[Site "https://www.chess.com"]

[Event "Titled Tuesday Blitz June 21 Early 2022"]
[White "Bortnyk, Mykola"]
[Black "Starozhilov, Leonid"]
[WhiteFideId "14120836"]
[BlackFideId "14106752"]
[WhiteElo "2582"]
[BlackElo "2414"]
[Result "1-0"]
[Round "10"]
[TimeControl "180+1"]
[Date "2022.06.21"]
[WhiteClock "0:00:40"]
[BlackClock "0:00:01"]

1. e4 {[%clk 0:03:00]}  Nc6 {[%clk 0:02:59]} 2. Nf3 {[%clk 0:02:59]}  d6 {[%clk 0:03:00]} 3. d4 {[%clk 0:02:57]}  Nf6 {[%clk 0:03:01]} 4. Nc3 {[%clk 0:02:56]}  g6 {[%clk 0:03:00]} 5. Bb5 {[%clk 0:02:55]}  a6 {[%clk 0:02:59]} 6. Bxc6+ {[%clk 0:02:55]}  bxc6 {[%clk 0:03:00]} 7. O-O {[%clk 0:02:55]}  Bg7 {[%clk 0:02:59]} 8. e5 {[%clk 0:02:55]}  Nd7 {[%clk 0:02:40]} 9. Re1 {[%clk 0:02:51]}  O-O {[%clk 0:02:40]} 10. Bf4 {[%clk 0:02:42]}  Rb8 {[%clk 0:02:37]} 11. Rb1 {[%clk 0:02:38]}  Nb6 {[%clk 0:02:15]} 12. h3 {[%clk 0:02:33]}  Nd5 {[%clk 0:02:11]} 13. Nxd5 {[%clk 0:02:32]}  cxd5 {[%clk 0:02:11]} 14. Qd2 {[%clk 0:02:31]}  Bf5 {[%clk 0:02:03]} 15. Nh4 {[%clk 0:02:27]}  Be6 {[%clk 0:01:34]} 16. Bh6 {[%clk 0:02:24]}  c5 {[%clk 0:01:28]} 17. Bxg7 {[%clk 0:02:23]}  Kxg7 {[%clk 0:01:28]} 18. Nf3 {[%clk 0:02:20]}  Bf5 {[%clk 0:01:20]} 19. exd6 {[%clk 0:02:12]}  Qxd6 {[%clk 0:01:16]} 20. dxc5 {[%clk 0:02:12]}  Qxc5 {[%clk 0:01:16]} 21. Nd4 {[%clk 0:02:12]}  Bd7 {[%clk 0:00:57]} 22. Qe3 {[%clk 0:02:09]}  Rbc8 {[%clk 0:00:37]} 23. c3 {[%clk 0:02:02]}  Rfe8 {[%clk 0:00:36]} 24. Rbd1 {[%clk 0:01:37]}  e5 {[%clk 0:00:11]} 25. Nf3 {[%clk 0:01:37]}  Qd6 {[%clk 0:00:08]} 26. Qd2 {[%clk 0:01:18]}  Bc6 {[%clk 0:00:08]} 27. Qg5 {[%clk 0:01:13]}  f6 {[%clk 0:00:08]} 28. Qg3 {[%clk 0:01:14]}  a5 {[%clk 0:00:06]} 29. h4 {[%clk 0:01:13]}  a4 {[%clk 0:00:05]} 30. h5 {[%clk 0:01:11]}  g5 {[%clk 0:00:04]} 31. b3 {[%clk 0:00:46]}  axb3 {[%clk 0:00:04]} 32. axb3 {[%clk 0:00:47]}  h6 {[%clk 0:00:04]} 33. c4 {[%clk 0:00:45]}  Qc5 {[%clk 0:00:02]} 34. cxd5 {[%clk 0:00:44]}  Bxd5 {[%clk 0:00:03]} 35. Nh4 {[%clk 0:00:43]}  Be6 {[%clk 0:00:03]} 36. Qd3 {[%clk 0:00:40]}  Rcd8 {[%clk 0:00:01]} 37. Qg6+ {[%clk 0:00:40]} 1-0


[Site "https://www.chess.com"]

[Event "Titled Tuesday Blitz June 21 Early 2022"]
[White "Cherniaiev, Tykhon"]
[Black "Alexiadis, Hristos"]
[WhiteFideId "14182360"]
[BlackFideId "4249623"]
[WhiteElo "2289"]
[BlackElo "2416"]
[Result "0-1"]
[Round "10"]
[TimeControl "180+1"]
[Date "2022.06.21"]
[WhiteClock "0:00:12"]
[BlackClock "0:00:05"]

1. Nf3 {[%clk 0:03:00]}  Nf6 {[%clk 0:02:59]} 2. d4 {[%clk 0:03:01]}  e6 {[%clk 0:02:58]} 3. c4 {[%clk 0:03:01]}  d5 {[%clk 0:02:54]} 4. g3 {[%clk 0:02:59]}  Bb4+ {[%clk 0:02:52]} 5. Bd2 {[%clk 0:02:58]}  Be7 {[%clk 0:02:50]} 6. Qc2 {[%clk 0:02:58]}  Nbd7 {[%clk 0:02:47]} 7. Bg2 {[%clk 0:02:59]}  O-O {[%clk 0:02:47]} 8. O-O {[%clk 0:02:59]}  c6 {[%clk 0:02:47]} 9. b3 {[%clk 0:02:58]}  b6 {[%clk 0:02:39]} 10. Nc3 {[%clk 0:02:58]}  a5 {[%clk 0:02:36]} 11. Rfe1 {[%clk 0:02:53]}  Ba6 {[%clk 0:02:35]} 12. Rad1 {[%clk 0:02:44]}  dxc4 {[%clk 0:02:32]} 13. bxc4 {[%clk 0:02:44]}  Bxc4 {[%clk 0:02:32]} 14. Ne5 {[%clk 0:02:43]}  Nxe5 {[%clk 0:02:25]} 15. dxe5 {[%clk 0:02:44]}  Nd5 {[%clk 0:02:23]} 16. Bc1 {[%clk 0:02:37]}  Qc8 {[%clk 0:02:15]} 17. Ne4 {[%clk 0:02:31]}  b5 {[%clk 0:02:10]} 18. Nd6 {[%clk 0:02:30]}  Bxd6 {[%clk 0:02:07]} 19. exd6 {[%clk 0:02:31]}  e5 {[%clk 0:02:01]} 20. e4 {[%clk 0:02:25]}  Nb4 {[%clk 0:01:59]} 21. Qc3 {[%clk 0:02:23]}  Qe6 {[%clk 0:01:59]} 22. Bb2 {[%clk 0:02:15]}  f6 {[%clk 0:01:54]} 23. a3 {[%clk 0:02:14]}  Na6 {[%clk 0:01:49]} 24. Qxa5 {[%clk 0:02:12]}  Nc5 {[%clk 0:01:48]} 25. Qc3 {[%clk 0:01:31]}  Rfd8 {[%clk 0:01:46]} 26. f4 {[%clk 0:01:00]}  Na4 {[%clk 0:01:43]} 27. Qd2 {[%clk 0:00:51]}  Nxb2 {[%clk 0:01:41]} 28. Qxb2 {[%clk 0:00:52]}  Rxd6 {[%clk 0:01:41]} 29. Qb4 {[%clk 0:00:47]}  Rad8 {[%clk 0:01:38]} 30. Rxd6 {[%clk 0:00:47]}  Qxd6 {[%clk 0:01:39]} 31. Qa5 {[%clk 0:00:46]}  Qd4+ {[%clk 0:01:37]} 32. Kh1 {[%clk 0:00:45]}  Qd2 {[%clk 0:01:35]} 33. Qxd2 {[%clk 0:00:45]}  Rxd2 {[%clk 0:01:36]} 34. fxe5 {[%clk 0:00:44]}  fxe5 {[%clk 0:01:37]} 35. Rc1 {[%clk 0:00:44]}  Ra2 {[%clk 0:01:28]} 36. Bh3 {[%clk 0:00:43]}  Kf7 {[%clk 0:01:04]} 37. Bd7 {[%clk 0:00:41]}  c5 {[%clk 0:01:01]} 38. Rc3 {[%clk 0:00:36]}  Ke7 {[%clk 0:00:57]} 39. Bc6 {[%clk 0:00:35]}  Kd6 {[%clk 0:00:56]} 40. Be8 {[%clk 0:00:35]}  g6 {[%clk 0:00:48]} 41. h4 {[%clk 0:00:32]}  Be2 {[%clk 0:00:40]} 42. Rb3 {[%clk 0:00:22]}  Bc4 {[%clk 0:00:31]} 43. Rc3 {[%clk 0:00:22]}  Kc7 {[%clk 0:00:22]} 44. g4 {[%clk 0:00:22]}  Kb6 {[%clk 0:00:21]} 45. h5 {[%clk 0:00:20]}  gxh5 {[%clk 0:00:22]} 46. gxh5 {[%clk 0:00:21]}  Be6 {[%clk 0:00:17]} 47. h6 {[%clk 0:00:20]}  c4 {[%clk 0:00:16]} 48. Rf3 {[%clk 0:00:17]}  Kc5 {[%clk 0:00:13]} 49. Rg3 {[%clk 0:00:15]}  Kd4 {[%clk 0:00:08]} 50. Rg7 {[%clk 0:00:16]}  c3 {[%clk 0:00:08]} 51. Rxh7 {[%clk 0:00:12]}  c2 {[%clk 0:00:09]} 52. Rc7 {[%clk 0:00:12]}  Bc4 {[%clk 0:00:09]} 53. Rd7+ {[%clk 0:00:13]}  Ke3 {[%clk 0:00:08]} 54. Rg7 {[%clk 0:00:11]}  c1=Q+ {[%clk 0:00:08]} 55. Rg1 {[%clk 0:00:12]}  Qd2 {[%clk 0:00:06]} 56. Rg3+ {[%clk 0:00:12]}  Kf4 {[%clk 0:00:06]} 57. h7 {[%clk 0:00:12]}  Qh2# {[%clk 0:00:05]} 0-1


[Site "https://www.chess.com"]

[Event "Titled Tuesday Blitz June 21 Early 2022"]
[White "Chernomordik, Pavel"]
[Black "Aradhya, Garg"]
[WhiteFideId "2804530"]
[BlackFideId "25006746"]
[WhiteElo "2220"]
[BlackElo "2203"]
[Result "0-1"]
[Round "10"]
[TimeControl "180+1"]
[Date "2022.06.22"]
[WhiteClock "0:00:01"]
[BlackClock "0:01:47"]

1. e4 {[%clk 0:03:00]}  e5 {[%clk 0:02:58]} 2. Nf3 {[%clk 0:03:00]}  Nc6 {[%clk 0:02:59]} 3. Bb5 {[%clk 0:03:00]}  a6 {[%clk 0:02:58]} 4. Ba4 {[%clk 0:02:59]}  Nf6 {[%clk 0:02:59]} 5. Qe2 {[%clk 0:02:59]}  b5 {[%clk 0:02:59]} 6. Bb3 {[%clk 0:02:58]}  Bc5 {[%clk 0:02:59]} 7. a4 {[%clk 0:02:58]}  b4 {[%clk 0:02:58]} 8. Bxf7+ {[%clk 0:02:56]}  Kxf7 {[%clk 0:02:58]} 9. Qc4+ {[%clk 0:02:56]}  d5 {[%clk 0:02:54]} 10. Qxc5 {[%clk 0:02:55]}  Qd6 {[%clk 0:02:53]} 11. Qxd6 {[%clk 0:02:54]}  cxd6 {[%clk 0:02:54]} 12. exd5 {[%clk 0:02:54]}  Nxd5 {[%clk 0:02:55]} 13. d3 {[%clk 0:02:52]}  Bf5 {[%clk 0:02:53]} 14. O-O {[%clk 0:02:49]}  b3 {[%clk 0:02:51]} 15. cxb3 {[%clk 0:02:37]}  Ndb4 {[%clk 0:02:49]} 16. Nc3 {[%clk 0:02:31]}  Bxd3 {[%clk 0:02:47]} 17. Rd1 {[%clk 0:02:30]}  e4 {[%clk 0:02:47]} 18. Nxe4 {[%clk 0:02:28]}  Rad8 {[%clk 0:02:44]} 19. Bf4 {[%clk 0:02:16]}  d5 {[%clk 0:02:41]} 20. Nd6+ {[%clk 0:02:07]}  Kg6 {[%clk 0:02:39]} 21. Nb7 {[%clk 0:02:05]}  Rde8 {[%clk 0:02:38]} 22. Nc5 {[%clk 0:02:02]}  Be2 {[%clk 0:02:36]} 23. Rd2 {[%clk 0:01:57]}  Bxf3 {[%clk 0:02:36]} 24. gxf3 {[%clk 0:01:57]}  Rhf8 {[%clk 0:02:36]} 25. Be3 {[%clk 0:01:43]}  Rxf3 {[%clk 0:02:32]} 26. Kg2 {[%clk 0:01:43]}  Rf5 {[%clk 0:02:32]} 27. Rc1 {[%clk 0:01:39]}  Na2 {[%clk 0:02:27]} 28. Rcd1 {[%clk 0:01:35]}  d4 {[%clk 0:02:26]} 29. Bxd4 {[%clk 0:01:20]}  Nxd4 {[%clk 0:02:26]} 30. Rxd4 {[%clk 0:01:19]}  Rxc5 {[%clk 0:02:24]} 31. Rd6+ {[%clk 0:01:19]}  Kh5 {[%clk 0:02:22]} 32. R1d5+ {[%clk 0:01:14]}  Rxd5 {[%clk 0:02:20]} 33. Rxd5+ {[%clk 0:01:14]}  g5 {[%clk 0:02:15]} 34. f4 {[%clk 0:01:06]}  h6 {[%clk 0:02:14]} 35. fxg5 {[%clk 0:01:05]}  hxg5 {[%clk 0:02:15]} 36. Kf3 {[%clk 0:01:03]}  Rb8 {[%clk 0:02:14]} 37. Rd6 {[%clk 0:00:56]}  Rxb3+ {[%clk 0:02:14]} 38. Kg2 {[%clk 0:00:55]}  Rxb2+ {[%clk 0:02:14]} 39. Kg3 {[%clk 0:00:56]}  Rb3+ {[%clk 0:02:14]} 40. Kg2 {[%clk 0:00:55]}  Nb4 {[%clk 0:02:14]} 41. Rb6 {[%clk 0:00:50]}  Rb1 {[%clk 0:02:04]} 42. a5 {[%clk 0:00:47]}  Kg4 {[%clk 0:02:02]} 43. h3+ {[%clk 0:00:46]}  Kf4 {[%clk 0:02:01]} 44. Rf6+ {[%clk 0:00:39]}  Ke4 {[%clk 0:02:00]} 45. Rg6 {[%clk 0:00:38]}  Nd3 {[%clk 0:01:52]} 46. Rxg5 {[%clk 0:00:36]}  Nf4+ {[%clk 0:01:52]} 47. Kh2 {[%clk 0:00:35]}  Rb2+ {[%clk 0:01:50]} 48. Kh1 {[%clk 0:00:35]}  Rb1+ {[%clk 0:01:50]} 49. Kh2 {[%clk 0:00:34]}  Rb2+ {[%clk 0:01:50]} 50. Kh1 {[%clk 0:00:34]}  Rb5 {[%clk 0:01:51]} 51. Rg3 {[%clk 0:00:07]}  Rxa5 {[%clk 0:01:50]} 52. h4 {[%clk 0:00:06]}  Rh5 {[%clk 0:01:49]} 53. Ra3 {[%clk 0:00:03]}  Rxh4+ {[%clk 0:01:49]} 54. Kg1 {[%clk 0:00:03]}  Rh6 {[%clk 0:01:49]} 55. Kf2 {[%clk 0:00:02]}  Rh2+ {[%clk 0:01:47]} 56. Kg3 {[%clk 0:00:01]}  Rh3+ {[%clk 0:01:47]} 0-1


[Site "https://www.chess.com"]

[Event "Titled Tuesday Blitz June 21 Early 2022"]
[White "Chigaev, Maksim"]
[Black "Lazavik, Denis"]
[WhiteFideId "4108116"]
[BlackFideId "13515110"]
[WhiteElo "2457"]
[BlackElo "2437"]
[Result "1/2-1/2"]
[Round "10"]
[TimeControl "180+1"]
[Date "2022.06.21"]
[WhiteClock "0:00:12"]
[BlackClock "0:00:09"]

1. e4 {[%clk 0:03:00]}  c5 {[%clk 0:02:58]} 2. Nf3 {[%clk 0:02:58]}  e6 {[%clk 0:02:58]} 3. Nc3 {[%clk 0:02:52]}  Nc6 {[%clk 0:02:58]} 4. Bb5 {[%clk 0:02:50]}  Nd4 {[%clk 0:02:58]} 5. Bc4 {[%clk 0:02:47]}  Nf6 {[%clk 0:02:56]} 6. O-O {[%clk 0:02:44]}  a6 {[%clk 0:02:53]} 7. Re1 {[%clk 0:02:43]}  b5 {[%clk 0:02:52]} 8. Bf1 {[%clk 0:02:43]}  Bb7 {[%clk 0:02:49]} 9. d3 {[%clk 0:02:42]}  Nxf3+ {[%clk 0:02:34]} 10. Qxf3 {[%clk 0:02:42]}  Qc7 {[%clk 0:02:31]} 11. a4 {[%clk 0:02:24]}  b4 {[%clk 0:02:29]} 12. Nd1 {[%clk 0:02:01]}  Be7 {[%clk 0:02:14]} 13. Bf4 {[%clk 0:01:57]}  d6 {[%clk 0:02:13]} 14. Ne3 {[%clk 0:01:57]}  O-O {[%clk 0:02:07]} 15. Nc4 {[%clk 0:01:56]}  a5 {[%clk 0:01:54]} 16. Qg3 {[%clk 0:01:42]}  e5 {[%clk 0:01:44]} 17. Bh6 {[%clk 0:01:33]}  Ne8 {[%clk 0:01:38]} 18. c3 {[%clk 0:01:33]}  Kh8 {[%clk 0:01:36]} 19. Bd2 {[%clk 0:01:33]}  Nf6 {[%clk 0:01:20]} 20. Ne3 {[%clk 0:01:27]}  Bc8 {[%clk 0:01:19]} 21. Be2 {[%clk 0:01:25]}  Be6 {[%clk 0:01:13]} 22. h3 {[%clk 0:01:23]}  Nd7 {[%clk 0:01:09]} 23. Bg4 {[%clk 0:01:22]}  Rae8 {[%clk 0:01:03]} 24. Qf3 {[%clk 0:01:13]}  Qd8 {[%clk 0:00:59]} 25. g3 {[%clk 0:01:10]}  Nb8 {[%clk 0:00:57]} 26. Qe2 {[%clk 0:01:10]}  Nc6 {[%clk 0:00:56]} 27. Rac1 {[%clk 0:01:05]}  Bg5 {[%clk 0:00:56]} 28. h4 {[%clk 0:00:51]}  Bxe3 {[%clk 0:00:54]} 29. Bxe3 {[%clk 0:00:51]}  Qd7 {[%clk 0:00:53]} 30. Bf3 {[%clk 0:00:39]}  f5 {[%clk 0:00:49]} 31. exf5 {[%clk 0:00:39]}  Bxf5 {[%clk 0:00:49]} 32. Qd1 {[%clk 0:00:29]}  Be6 {[%clk 0:00:46]} 33. Bg2 {[%clk 0:00:28]}  Bg8 {[%clk 0:00:22]} 34. Kh2 {[%clk 0:00:18]}  Ne7 {[%clk 0:00:21]} 35. d4 {[%clk 0:00:18]}  exd4 {[%clk 0:00:16]} 36. cxd4 {[%clk 0:00:19]}  c4 {[%clk 0:00:16]} 37. d5 {[%clk 0:00:20]}  Rc8 {[%clk 0:00:13]} 38. Bb6 {[%clk 0:00:20]}  Qb7 {[%clk 0:00:10]} 39. Bd4 {[%clk 0:00:12]}  Nxd5 {[%clk 0:00:10]} 40. Qg4 {[%clk 0:00:10]}  Rcd8 {[%clk 0:00:04]} 41. Rcd1 {[%clk 0:00:09]}  Qd7 {[%clk 0:00:03]} 42. Qg5 {[%clk 0:00:08]}  Nf6 {[%clk 0:00:03]} 43. Kg1 {[%clk 0:00:08]}  h6 {[%clk 0:00:03]} 44. Qxa5 {[%clk 0:00:07]}  b3 {[%clk 0:00:03]} 45. Qc3 {[%clk 0:00:07]}  Qf7 {[%clk 0:00:03]} 46. a5 {[%clk 0:00:08]}  d5 {[%clk 0:00:03]} 47. a6 {[%clk 0:00:08]}  Bh7 {[%clk 0:00:03]} 48. a7 {[%clk 0:00:07]}  Be4 {[%clk 0:00:04]} 49. f3 {[%clk 0:00:07]}  Bf5 {[%clk 0:00:04]} 50. Re5 {[%clk 0:00:07]}  Bh7 {[%clk 0:00:03]} 51. Rde1 {[%clk 0:00:08]}  Rd7 {[%clk 0:00:02]} 52. Qa5 {[%clk 0:00:05]}  Ra8 {[%clk 0:00:03]} 53. Qc5 {[%clk 0:00:05]}  Rdxa7 {[%clk 0:00:03]} 54. Re7 {[%clk 0:00:04]}  Rxe7 {[%clk 0:00:03]} 55. Rxe7 {[%clk 0:00:05]}  Qf8 {[%clk 0:00:03]} 56. Qc7 {[%clk 0:00:04]}  Rc8 {[%clk 0:00:03]} 57. Qa7 {[%clk 0:00:04]}  Ra8 {[%clk 0:00:02]} 58. Qb7 {[%clk 0:00:03]}  Rb8 {[%clk 0:00:03]} 59. Qc7 {[%clk 0:00:03]}  Rc8 {[%clk 0:00:03]} 60. Qe5 {[%clk 0:00:04]}  Re8 {[%clk 0:00:03]} 61. Rxe8 {[%clk 0:00:03]}  Qxe8 {[%clk 0:00:04]} 62. Qc7 {[%clk 0:00:03]}  Qf8 {[%clk 0:00:04]} 63. g4 {[%clk 0:00:03]}  Bg8 {[%clk 0:00:04]} 64. h5 {[%clk 0:00:03]}  Nh7 {[%clk 0:00:04]} 65. Qe5 {[%clk 0:00:03]}  Ng5 {[%clk 0:00:04]} 66. Kf2 {[%clk 0:00:02]}  Ne6 {[%clk 0:00:03]} 67. Be3 {[%clk 0:00:01]}  d4 {[%clk 0:00:03]} 68. Bxh6 {[%clk 0:00:02]}  c3 {[%clk 0:00:03]} 69. Bc1 {[%clk 0:00:02]}  cxb2 {[%clk 0:00:03]} 70. Bxb2 {[%clk 0:00:03]}  d3 {[%clk 0:00:03]} 71. h6 {[%clk 0:00:03]}  d2 {[%clk 0:00:01]} 72. hxg7+ {[%clk 0:00:04]}  Nxg7 {[%clk 0:00:02]} 73. Qh5+ {[%clk 0:00:03]}  Bh7 {[%clk 0:00:02]} 74. Qd5 {[%clk 0:00:04]}  Bg6 {[%clk 0:00:02]} 75. Qxd2 {[%clk 0:00:04]}  Kh7 {[%clk 0:00:02]} 76. Bf1 {[%clk 0:00:03]}  Qc5+ {[%clk 0:00:02]} 77. Kg2 {[%clk 0:00:04]}  Ne6 {[%clk 0:00:02]} 78. Qc3 {[%clk 0:00:02]}  Nf4+ {[%clk 0:00:02]} 79. Kg3 {[%clk 0:00:03]}  Qxc3 {[%clk 0:00:02]} 80. Bxc3 {[%clk 0:00:03]}  Nd3 {[%clk 0:00:02]} 81. Bxd3 {[%clk 0:00:03]}  Bxd3 {[%clk 0:00:03]} 82. Kf4 {[%clk 0:00:03]}  Be2 {[%clk 0:00:02]} 83. Ke3 {[%clk 0:00:03]}  Bd1 {[%clk 0:00:03]} 84. Kf2 {[%clk 0:00:03]}  Kg6 {[%clk 0:00:03]} 85. Kg3 {[%clk 0:00:04]}  Be2 {[%clk 0:00:03]} 86. Bb2 {[%clk 0:00:05]}  Bc4 {[%clk 0:00:04]} 87. f4 {[%clk 0:00:05]}  Be6 {[%clk 0:00:04]} 88. Bc3 {[%clk 0:00:05]}  Bd7 {[%clk 0:00:05]} 89. Kf3 {[%clk 0:00:05]}  Bc8 {[%clk 0:00:05]} 90. Kg3 {[%clk 0:00:06]}  Bd7 {[%clk 0:00:05]} 91. Kf3 {[%clk 0:00:07]}  Bc8 {[%clk 0:00:06]} 92. Bb2 {[%clk 0:00:07]}  Bd7 {[%clk 0:00:06]} 93. Kg3 {[%clk 0:00:08]}  Bc8 {[%clk 0:00:07]} 94. Kh4 {[%clk 0:00:09]}  Bd7 {[%clk 0:00:07]} 95. Bd4 {[%clk 0:00:09]}  Bc8 {[%clk 0:00:08]} 96. Bb2 {[%clk 0:00:10]}  Bd7 {[%clk 0:00:08]} 97. Kg3 {[%clk 0:00:11]}  Bc8 {[%clk 0:00:09]} 98. Kh4 {[%clk 0:00:12]} 1/2-1/2


[Site "https://www.chess.com"]

[Event "Titled Tuesday Blitz June 21 Early 2022"]
[White "Corrales Jimenez, Fidel"]
[Black "Bluebaum, Matthias"]
[WhiteFideId "3506690"]
[BlackFideId "24651516"]
[WhiteElo "2541"]
[BlackElo "2556"]
[Result "1-0"]
[Round "10"]
[TimeControl "180+1"]
[Date "2022.06.21"]
[WhiteClock "0:01:55"]
[BlackClock "0:00:03"]

1. d4 {[%clk 0:03:00]}  Nf6 {[%clk 0:02:59]} 2. c4 {[%clk 0:03:00]}  e6 {[%clk 0:03:00]} 3. Nc3 {[%clk 0:03:00]}  d5 {[%clk 0:03:00]} 4. cxd5 {[%clk 0:03:00]}  exd5 {[%clk 0:03:01]} 5. Bg5 {[%clk 0:03:00]}  c6 {[%clk 0:03:01]} 6. e3 {[%clk 0:03:00]}  h6 {[%clk 0:03:02]} 7. Bh4 {[%clk 0:03:00]}  Be7 {[%clk 0:03:03]} 8. Bxf6 {[%clk 0:03:00]}  Bxf6 {[%clk 0:03:04]} 9. Bd3 {[%clk 0:03:00]}  O-O {[%clk 0:03:04]} 10. Nf3 {[%clk 0:03:00]}  Re8 {[%clk 0:02:56]} 11. O-O {[%clk 0:03:01]}  Nd7 {[%clk 0:02:43]} 12. a3 {[%clk 0:03:01]}  Nb6 {[%clk 0:02:42]} 13. h3 {[%clk 0:02:59]}  g6 {[%clk 0:02:41]} 14. Qc2 {[%clk 0:02:59]}  Bg7 {[%clk 0:02:42]} 15. Na4 {[%clk 0:02:48]}  Nxa4 {[%clk 0:02:39]} 16. Qxa4 {[%clk 0:02:49]}  Be6 {[%clk 0:02:34]} 17. b4 {[%clk 0:02:47]}  a6 {[%clk 0:02:30]} 18. Rac1 {[%clk 0:02:47]}  Bd7 {[%clk 0:02:25]} 19. Qc2 {[%clk 0:02:45]}  Qb6 {[%clk 0:02:22]} 20. Rb1 {[%clk 0:02:44]}  Bf8 {[%clk 0:02:06]} 21. Ne5 {[%clk 0:02:44]}  Be6 {[%clk 0:02:01]} 22. Bxg6 {[%clk 0:02:43]}  fxg6 {[%clk 0:02:02]} 23. Qxg6+ {[%clk 0:02:44]}  Bg7 {[%clk 0:02:02]} 24. f4 {[%clk 0:02:42]}  Qc7 {[%clk 0:00:34]} 25. f5 {[%clk 0:02:41]}  Bf7 {[%clk 0:00:35]} 26. Qg4 {[%clk 0:02:41]}  Kh8 {[%clk 0:00:35]} 27. f6 {[%clk 0:02:41]}  Bf8 {[%clk 0:00:36]} 28. Rf3 {[%clk 0:02:34]}  Rxe5 {[%clk 0:00:27]} 29. dxe5 {[%clk 0:02:34]}  Qxe5 {[%clk 0:00:28]} 30. Rbf1 {[%clk 0:02:23]}  Qe6 {[%clk 0:00:26]} 31. Qh4 {[%clk 0:02:17]}  Re8 {[%clk 0:00:25]} 32. Rg3 {[%clk 0:02:10]}  Qe4 {[%clk 0:00:23]} 33. Rf4 {[%clk 0:02:10]}  Qe5 {[%clk 0:00:18]} 34. Rfg4 {[%clk 0:02:04]}  Kh7 {[%clk 0:00:16]} 35. Rg7+ {[%clk 0:02:03]}  Bxg7 {[%clk 0:00:15]} 36. Rxg7+ {[%clk 0:02:04]}  Kh8 {[%clk 0:00:16]} 37. Rxf7 {[%clk 0:02:04]}  Qxe3+ {[%clk 0:00:16]} 38. Kh2 {[%clk 0:02:02]}  Qe5+ {[%clk 0:00:15]} 39. Qg3 {[%clk 0:02:03]}  Qxg3+ {[%clk 0:00:12]} 40. Kxg3 {[%clk 0:02:03]}  Re3+ {[%clk 0:00:12]} 41. Kf4 {[%clk 0:02:03]}  Rxa3 {[%clk 0:00:11]} 42. Rxb7 {[%clk 0:02:01]}  Kg8 {[%clk 0:00:10]} 43. h4 {[%clk 0:02:00]}  Rb3 {[%clk 0:00:08]} 44. g4 {[%clk 0:01:59]}  a5 {[%clk 0:00:08]} 45. Kf5 {[%clk 0:01:59]}  Rxb4 {[%clk 0:00:08]} 46. Ra7 {[%clk 0:01:58]}  a4 {[%clk 0:00:04]} 47. g5 {[%clk 0:01:58]}  hxg5 {[%clk 0:00:04]} 48. hxg5 {[%clk 0:01:59]}  a3 {[%clk 0:00:05]} 49. g6 {[%clk 0:01:59]}  Rb5 {[%clk 0:00:04]} 50. Ra8+ {[%clk 0:01:55]}  Rb8 {[%clk 0:00:03]} 51. Rxb8# {[%clk 0:01:55]} 1-0


[Site "https://www.chess.com"]